Cogmind - Beta 14 @@@ ROGUE MODE // 2024.09.14 @ 13:13:58 Player: ZarZap Result: Destroyed by S-10 Pest with Light Assault Rifle Performance ------------- Evolutions (0) 0 Regions Visited (2) 400 Robots Destroyed (13) 65 Value Destroyed (345) 345 Prototype IDs (0) 0 Alien Tech Used (0) 0 Bonus (0) 0 TOTAL SCORE: 810 Bonus ------- None Cogmind --------- Core Integrity 0/250 Matter 265/300 Energy 198/250 System Corruption 1% Temperature Cool (0) Movement Walking (260) Ox2 Location -10/Mines Parts ------- > --- POWER (1) -------- Ion Engine > --- PROPULSION (2) --- Aluminum Leg Aluminum Leg > --- UTILITY (2) ------ Improved Heat Sink High-capacity Storage Unit > --- WEAPON (2) ------- Small Laser Assault Rifle > --- INVENTORY (20) --- Ion Engine Light Ion Engine Aluminum Leg Wheel Wheel Heat Sink Peak State ------------ > --- POWER ------------ Ion Engine > --- PROPULSION ------- Wheel Compact Wheel > --- UTILITY ---------- Improved Heat Sink High-capacity Storage Unit > --- WEAPON ----------- Small Laser Light Assault Rifle > --- INVENTORY -------- Light Ion Engine Compact Wheel Heat Sink Small Laser Small Laser [Rating: 9] Favorites ----------- Power Ion Engine Engine Ion Engine Propulsion Compact Wheel Leg Aluminum Leg Wheel Compact Wheel Utility High-capacity Storage Unit Device Improved Heat Sink Storage High-capacity Storage Unit Weapon Small Laser Energy Gun Small Laser Ballistic Gun Light Assault Rifle Build | -11 -10 -10 ------- Run | Yrd Mat Min Slots Evolved . | . . . Power . | . . . Propulsion . | . . . Utility . | . . . Weapon . | . . . Parts Attached 16 | 6 7 3 Power 2 | 1 1 . Engine 2 | 1 1 . Core . | . . . Reactor . | . . . Propulsion 6 | 2 2 2 Treads . | . . . Leg 2 | . . 2 Wheel 4 | 2 2 . Hover . | . . . Flight . | . . . Utility 3 | 1 2 . Device 1 | . 1 . Storage 2 | 1 1 . Processor . | . . . Hackware . | . . . Protection . | . . . Artifact . | . . . Weapon 5 | 2 2 1 Energy Gun 3 | 1 2 . Energy Cannon . | . . . Ballistic Gun 2 | 1 . 1 Ballistic Cannon . | . . . Launcher . | . . . Special Weapon . | . . . Impact Weapon . | . . . Slashing Weapon . | . . . Piercing Weapon . | . . . Special Melee Weapon . | . . . Unidentified Prototypes . | . . . Parts Lost 4 | . 2 2 Power . | . . . Propulsion 2 | . . 2 Utility . | . . . Weapon 2 | . 2 . Highest Loss Streak 1 | . 1 1 To Critical Strikes . | . . . Average Slot Usage (%) 91 | . 90 94 Engine 14 | . 14 14 Leg 8 | . . 20 Wheel 17 | . 28 1 Device 9 | . 5 14 Storage 14 | . 14 14 Energy Gun 18 | . 15 22 Ballistic Gun 9 | . 11 6 Peak Build Rating 9 | 6 9 9 Average Rating 7 | 4 7 8 On Entrance 5 | . 6 9 Naked Turns . | . . . Heaviest Build 49 | 12 48 49 Greatest Support 32 | 26 32 32 Greatest Overweight (x) 15 | 3 1 15 Average Overweight (x) 1 | . . 2 Largest Inventory Capacity 20 | 8 20 20 Average Capacity 17 | 7 17 20 Most Carried 7 | 2 7 6 Average Carried 4 | . 3 5 Final Capacity 20 | 8 20 20 Final Carried 6 | 2 6 6 Class Distribution -------------------- 55% | Mutant 44% | Scavenger-Mutant Dominant Class ---------------- Mutant | -10/Materials Scavenger-Mutant | -10/Mines Resources | -11 -10 -10 ----------- Run | Yrd Mat Min Matter Collected 375 | 126 203 46 Remotely . | . . . Salvage Created 515 | . 395 120 Parts 28 | . 21 7 Haulers Intercepted . | . . . Recyclers Shooed . | . . . Parts Field Recycled . | . . . Retrieved Matter . | . . . Parts Self-Destructed . | . . . Prevented . | . . . Kills | -11 -10 -10 ------- Run | Yrd Mat Min Combat Hostiles Destroyed 9 | . 6 3 Guns 9 | . 6 3 Classes Destroyed 5 | . 4 1 Worker 2 | . 1 1 Recycler 1 | . 1 . Operator 1 | . 1 . Swarmer 1 | . . 1 Grunt 8 | . 6 2 Best Kill Streak 3 | . 3 2 Combat Bots Only 3 | . 3 2 Max Kills in Single Turn 1 | . 1 1 Gunslinging . | . . . Exploded . | . . . Melee . | . . . Uniques/NPCs Destroyed . | . . . Combat | -11 -10 -10 -------- Run | Yrd Mat Min Hostile Shots Fired 77 | . 50 27 Missed 23 | . 13 10 Damage Taken 722 | . 512 210 Core 250 | . 187 63 Absorbed by Shields . | . . . Core Remaining (%) 100 | 100 . . Volleys Fired 57 | . 42 15 Largest 2 | . 2 2 Hottest 80 | . 80 80 Shots Fired 103 | . 73 30 Gun 103 | . 73 30 Cannon . | . . . Launcher . | . . . Special . | . . . Kinetic 39 | . 35 4 Thermal 64 | . 38 26 Explosive . | . . . Electromagnetic . | . . . Robot Hit Streak 12 | . 12 3 Robot Miss Streak 6 | . 6 3 Penetration Max . | . . . Secondary Targets 2 | . 1 1 Max Gunslinging Chain 1 | . 1 1 Shots Hit Robots 58 | . 42 16 Core Hits 28 | . 20 8 Critical Kills . | . . . Critical Parts Destroyed 1 | . 1 . Critical Strikes 1 | . 1 . Destroy 1 | . 1 . Melee Attacks . | . . . Impact . | . . . Slashing . | . . . Piercing . | . . . Sneak Attacks . | . . . Combat Hostiles . | . . . Follow-up Attacks . | . . . Damage Inflicted 583 | . 398 185 Guns 583 | . 398 185 Cannons . | . . . Explosions . | . . . Melee . | . . . Ramming . | . . . Kinetic 197 | . 168 29 Thermal 386 | . 230 156 Explosive . | . . . Electromagnetic . | . . . Impact . | . . . Slashing . | . . . Piercing . | . . . Highest Corruption 1 | . 1 1 Average Corruption 1 | . 1 1 Corruption Purged . | . . . Corruption Blocked . | . . . Effects 6 | . 1 5 Message Errors 1 | . . 1 Matter Fused 3 | . . 3 Energy Discharges 2 | . 1 1 Overload Shots . | . . . Overflow Damage . | . . . Projectiles . | . . . Explosions . | . . . Melee . | . . . Knockbacks . | . . . Impact . | . . . Kinetic . | . . . Secondary . | . . . Self-Inflicted Damage . | . . . Shots . | . . . Rammed . | . . . Targets Rammed . | . . . Kicked . | . . . Crushed . | . . . Highest Temperature 170 | . 170 1 Average Temperature 72 | . 75 1 Received Heat Transfer 414 | . 306 108 Siege Activations . | . . . Robots Corrupted . | . . . Combat Hostiles . | . . . Parts Fried . | . . . Impact Corruptions . | . . . Robots Melted . | . . . Combat Hostiles . | . . . Parts Melted 3 | . 1 2 Heat Transferred 875 | . 525 350 Parts Sabotaged . | . . . Parts Stolen . | . . . Parts Stripped . | . . . Power Chain Reactions . | . . . Alert | -11 -10 -10 ------- Run | Yrd Mat Min Peak Influence 168 | . 168 70 Initial 15 | . . 15 Average 42 | . 46 43 Maximum Alert Level . | . . . Low Security (%) 100 | 100 100 100 Level 1 . | . . . Level 2 . | . . . Level 3 . | . . . Level 4 . | . . . Level 5 . | . . . High Security . | . . . Max Security . | . . . Squads Dispatched . | . . . Investigation . | . . . Extermination . | . . . Reinforcement . | . . . Assault . | . . . Garrison . | . . . Intercept . | . . . Searches Triggered . | . . . Construction Impeded . | . . . Haulers Reinforced . | . . . Active Scanning Responses . | . . . Cargo Convoy Interrupts . | . . . Stealth | -11 -10 -10 --------- Run | Yrd Mat Min Distress Signals 1 | . 1 . Communications Jammed . | . . . Distress Signals . | . . . Times Spotted 17 | . 12 5 Peak Tracking Total 4 | . 4 3 Tactical Retreats . | . . . Traps | -11 -10 -10 ------- Run | Yrd Mat Min Traps Triggered 1 | . 1 . Indirectly . | . . . Trap Hack Attempts . | . . . Triggered . | . . . Disarmed . | . . . Reprogrammed . | . . . Reused . | . . . Traps Extracted . | . . . Installed . | . . . Triggered . | . . . Machines | -11 -10 -10 ---------- Run | Yrd Mat Min Machines Disabled . | . . . Max in Single Turn . | . . . Machines Repaired . | . . . Machines Dismantled . | . . . Machines Sabotaged . | . . . Overloaded Fab Kills . | . . . Hacking | -11 -10 -10 --------- Run | Yrd Mat Min Machines Accessed 1 | . 1 . Terminals 1 | . 1 . Fabricators . | . . . Repair Stations . | . . . Recycling Units . | . . . Scanalyzers . | . . . Garrison Access . | . . . Total Hacks 1 | . 1 . Successful 1 | . 1 . Failed . | . . . Catastrophic . | . . . Database Lockouts . | . . . Manual . | . . . Terminals 1 | . 1 . Fabricators . | . . . Repair Stations . | . . . Recycling Units . | . . . Scanalyzers . | . . . Garrison Access . | . . . Terminal Hacks 1 | . 1 . Maintenance Status 1 | . 1 . Fabricator Hacks . | . . . Repair Station Hacks . | . . . Recycling Unit Hacks . | . . . Scanalyzer . | . . . Garrison Access Hacks . | . . . Unauthorized Hacks . | . . . Terminals . | . . . Fabricators . | . . . Repair Stations . | . . . Recycling Units . | . . . Scanalyzers . | . . . Garrison Access . | . . . Data Cores Recovered 1 | . 1 . Used . | . . . Hacking Detections . | . . . Full Trace Events . | . . . Feedback Events . | . . . Feedback Blocked . | . . . Robot Schematics Acquired . | . . . Robots Built . | . . . Authchips . | . . . Time . | . . . Total Robot Build Rating . | . . . Part Schematics Acquired . | . . . Parts Built . | . . . Authchips . | . . . Time . | . . . Total Part Build Rating . | . . . Parts Repaired . | . . . Time . | . . . Parts Recycled . | . . . Recycled Matter . | . . . Retrieved Matter . | . . . Retrieved Components . | . . . Parts Scanalyzed . | . . . Part Schematics Acquired . | . . . Parts Damaged . | . . . Bothacking | -11 -10 -10 ------------ Run | Yrd Mat Min Used RIF Installer . | . . . Robots Hacked . | . . . Non-combat . | . . . Combat . | . . . Robot Hacks Applied . | . . . Relay Couplers Released . | . . . Fabnet Peak Effective % . | . . . Robots Rewired . | . . . Allies Hacked . | . . . Hacks Repelled . | . . . Allies | -11 -10 -10 -------- Run | Yrd Mat Min Total Allies . | . . . Largest Group . | . . . Highest-Rated Group . | . . . Highest-Rated Ally . | . . . Total Orders . | . . . Ally Attacks . | . . . Total Damage . | . . . Kills . | . . . Allies Corrupted . | . . . Allies Melted . | . . . Intel | -11 -10 -10 ------- Run | Yrd Mat Min Robot Analysis Total . | . . . Derelict Logs Recovered 1 | . . 1 Drone Launches . | . . . Drone Recoveries . | . . . Exploration | -11 -10 -10 ------------- Run | Yrd Mat Min Turns Passed 908 | 48 504 356 Spaces Moved 467 | 41 308 118 Core 12 | 8 . 4 Treads . | . . . Legs 95 | . . 95 Wheels 360 | 33 308 19 Hover . | . . . Flight . | . . . Fastest Speed 50 | 50 90 115 Average Speed 140 | 91 102 256 Slowest Speed 800 | 200 115 800 Overloaded Moves . | . . . Propulsion Burnouts . | . . . Robots Hopped . | . . . Cave-ins Triggered . | . . . Exploration Rate (%) 24 | 3 43 28 Regions Visited 2 Branch Regions 1 Pre-discovered Areas . | . . . Known Exits Taken . | . . . Unknown Exits Taken 2 | 1 1 . Scrap Searched 1 | . . 1 Spaces Dug . | . . . Terrain Destroyed . | . . . Melee . | . . . Projectile . | . . . AOE . | . . . Terrain Rammed . | . . . Walls Destroyed . | . . . Machines Disabled . | . . . Actions | -11 -10 -10 --------- Run | Yrd Mat Min Total 620 | 48 430 142 Wait 66 | . 62 4 Move 465 | 40 307 118 Hop . | . . . Pick Up 13 | 2 9 2 Fast Attach 6 | 6 . . Attach 5 | . 3 2 Detach . | . . . Swap 5 | . 4 1 Drop 3 | . 3 . Fire 57 | . 42 15 Melee . | . . . Ram . | . . . Kick . | . . . Crush . | . . . Escape Stasis . | . . . Rewire . | . . . Trap . | . . . Miscellaneous . | . . . Route ------- -11/Scrapyard -10/Materials -10/Mines History --------- Turn | Location | Event 23 | -11/Scrapyard | Discovered new exit (range 15) 49 | -11/Scrapyard | Entered Materials 315 | -10/Materials | Build established: Mutant 365 | -10/Materials | Discovered new exit (range 16) 379 | -10/Materials | Core integrity fell below 50% 553 | -10/Materials | Entered Mines 571 | -10/Mines | Core integrity fell below 20% 814 | -10/Mines | Learned 2 Materials zone layouts 909 | -10/Mines | Destroyed by S-10 Pest with Light Assault Rifle Last Messages --------------- 00679_ K-01 Serf collects debris. 00734_ K-01 Serf destroyed. 00737_ System corrupted: Matter fused (-10). 00742_ Acquired Wheel. 00743_ Acquired 20 matter. 00748_ Acquired Wheel. 00749_ Searching scrap... 00749_ Found Hover Unit. 00749_ Found Assault Rifle. 00749_ Found 41 Matter. 00750_ Acquired 10 matter. 00755_ Acquired Assault Rifle. 00760_ R-06 Scavenger collects Sml. Laser. 00764_ K-01 Serf collects debris. 00802_ System corrupted: Matter fused (-6). 00814_ Acquired derelict log, extracted data. Data stored: Materials zone layouts (x2). 00818_ System corrupted: Matter fused (-7). 00905_ S-10 Pest destroyed. 00908_ System corrupted: Energy discharge (-52). Map ----- +----------------------------------------------------+ | | | | | | | | | | | | | | | | | | | | | | | | | | | | | ?????????????????????????????????????? | | ?????????????????????????????????????? | | ???????????????????####??????????????? | | ?????????????????## ##?????????????? | | ?????????????????# #?????????????? | | ?????????????????# #?????????????? | | ?????????????????# #?????????????? | | ?????????????????# #??????????????? | | ?????????????????# #???????????????? | | ????????????###### #???????????????? | | ???????????## ## #######?????????? | | ??????###### @[#?????????? | | ??????# #####s#?????????? | | ???#### ##????s#?????????? | | ???# ### ##?????? ?????????? | | ???# ## ###?####??????? ????????? | | ???# ### ##??????????????? ???????? | | ???# #?####???????????????? ???????? | | ???# #??????????????????????##??????? | | ???# #??????????????????????????????? | | ???# #??????????????????????????????? | | ???# #??????????????????????????????? | | ???# #??????????????????????????????? | | ##?# #??????????????????????????????? | | ### #??????????????????????????????? | | #??????????????????????????????? | | #### #??????????????????????????????? | | ???# #??????????????????????????????? | | ???# #??????????????????????????????? | | ???# #??????????????????????????????? | | ???# #??????????????????????????????? | | #### #????????????????????########??? | | # #???????????????????## =!% #??? | | # ##???????????????#### %=##??? | | # """ #####??????????## ###???? | | # """ #?????????## ##?????? | +----------------------------------------------------+ Best States ------------- Heat Dissipation 39 Energy Generation 10 Energy Capacity 250 Matter Stores 300 Matter Capacity 300 Sight Range 16 Terrain Scan Density 10 Evasion (%) 42 Item Schematics ----------------- None Robot Schematics ------------------ None Fabricated ------------ Nothing Alien Tech Used ----------------- None Achievements -------------- None Challenges ------------ None Game ------ Seed StorageSurgeInverter Manual? 0 Play Time 00:07:45 Cumulative 13.6 hours Start 2024.09.14 @ 13:07:25 End 2024.09.14 @ 13:13:58 Sessions 1 Manual Loads 0 Difficulty Rogue Special Mode None Game No. 54 Rogue 54 Adventurer 0 Explorer 0 Win Type - Total 0 Types 0/0/0/0/0/0/0/0/0 Lore% 9 Gallery% 19 Achievement% 14 Wizard Run 0 Options --------- Layout 2 ASCII 0 Keyboard 0 Movement Mouse Keybinds 0 Fullscreen 1 Font 16/Smallcaps Map View 55x47 Zoom Use 0% Tactical HUD 1 Map Filters NONE Filters NONE Steam 1 RUN: ba496944-fef2-44ae-b84f-c28bcf94413b